[Event "Chessable English Open-ch 2022"]
[Site "Kenilwoth"]
[Date "2022.05.21"]
[Round "6.9"]
[White "Okhai, Shabir"]
[Black "Duncan, Patrick C M"]
[Result "1-0"]
[ECO "B12"]
[WhiteElo "2121"]
[BlackElo "2013"]
[Annotator "TA"]
[PlyCount "133"]
[EventDate "2022.05.18"]
[EventType "swiss"]
[EventCountry "ENG"]
[SourceTitle "playchess.com"]
[Source "ChessBase"]
[SourceQuality "1"]
[TimeControl "5400+30"]

{[%evp 10,133,19,7,20,16,49,51,57,62,47,50,138,122,184,179,236,230,268,169,185,38,49,42,27,40,39,40,72,39,47,0,58,10,21,17,9,0,0,0,0,-39,27,-26,-25,-10,12,0,0,-121,-52,-79,-89,-81,-73,-87,-91,-97,-101,-120,-112,-173,-172,-159,-159,-181,-181,-189,-164,-230,-218,-288,-283,-274,-266,-346,-329,-378,-330,-301,-26,-179,0,0,0,0,27,29,831,95,83,95,166,165,464,464,802,804,1340,1241,1178,1042,29965,29968,29964,29965,29970,29972,29962,29965,29978,29979,29980,29980,29982,29982,29982,29983,29983,29983,29984,29984,29984,29985,29986,29986]} 1. e4 {[%emt 0:00:03]} c6 {[%emt 0:00:06]} 2. d4 {[%emt 0:00:04]} d5 {[%emt 0:00:07]} 3. e5 {[%emt 0:00:04]} Bf5 {[%emt 0:00:09]} 4. Nd2 {[%emt 0:00:07]} e6 {[%emt 0:00:42]} 5. Nb3 {[%emt 0:00:07]} Nd7 {[%emt 0:01:34]} 6. Nf3 {[%emt 0:00:08]} Ne7 {[%emt 0:14:16] B12: Caro-Kann: Advance Variation.} 7. Be2 {[%emt 0:00:18][%cal Bf1e2,Be2g4,Bg4h3][%mdl 32]} f6 {[%emt 0:02:14]} 8. exf6 {[%emt 0:03:25]} gxf6 {[%emt 0:03:28] White is slightly better.} 9. Nh4 {[%emt 0:01:38]} Bg6 {[%emt 0:00:52]} 10. Bg4 {[%emt 0:07:18]} e5 {[%emt 0:08:06] [#]} (10... f5 $14) 11. O-O $146 {[%emt 0:05:43]} ({Predecessor:} 11. dxe5 fxe5 12. Bg5 Bg7 13. O-O Rf8 14. Qe2 e4 15. Nxg6 hxg6 16. c4 Bf6 17. Bh6 {1-0 (28) Malakhov,V (2690)-Yevseev,D (2572) Tomsk 2006}) 11... f5 {[%emt 0:12:57]} (11... Bf7 $16) 12. Bh3 $1 $18 {[%emt 0:04:14] dxe5 is the strong threat.} e4 {[%emt 0:00:28]} (12... Bg7 $142 13. Bg5 O-O) 13. Bg5 {[%emt 0:02:47]} Qc7 {[%emt 0:05:36]} 14. Rc1 {[%emt 0:05:49]} O-O-O {[%emt 0:05:08]} 15. c4 {[%emt 0:06:06]} (15. f3 $18) 15... dxc4 $14 {[%emt 0:00:45]} 16. Rxc4 {[%emt 0:01:21]} (16. Nxg6 hxg6 17. Rxc4 Re8 $19) 16... Kb8 {[%emt 0:03:44]} 17. Qc1 {[%emt 0:04:08]} Ka8 {[%emt 0:01:30]} 18. Rc2 {[%emt 0:08:44]} (18. Nxg6 hxg6 19. f3 exf3 20. Rxf3 Rc8 $17) 18... Nb6 {[%emt 0:06:49]} 19. Nc5 {[%emt 0:03:27] Hoping for Ne6.} (19. Nxg6 hxg6 20. Nc5 Qd6 $15) 19... Qd6 {[%emt 0:04:30] Prevents Ne6.} 20. Bf4 {[%emt 0:02:32]} (20. Nxg6 hxg6 21. Bf4 Qd5 $17) (20. f3 $1 $14 {should be considered.} e3 21. Qxe3) 20... Qd5 {[%emt 0:01:05]} (20... Qf6 $11 21. Be5 Qxh4 22. Bxh8 Bh6) 21. Bc7 {[%emt 0:08:36]} (21. Nxg6 hxg6 22. f3 exf3 $17) (21. f3 $1 $14 exf3 22. Nxf3) 21... Re8 $11 {[%emt 0:03:44]} 22. Be5 {[%emt 0:00:50] Inhibits Bg7.} Rg8 {[%emt 0:00:28]} 23. a4 {[%emt 0:07:46]} (23. Nxg6 Nxg6 24. Bc7 (24. Bxf5 Nxe5 25. dxe5 Qxe5 $17) 24... Bg7 $15) 23... Nd7 {[%emt 0:02:23]} 24. Nxd7 {[%emt 0:02:24]} (24. Nxg6 hxg6 25. Nxd7 Qxd7 $15) 24... Qxd7 {[%emt 0:00:08]} 25. b4 {[%emt 0:01:53]} Bg7 {[%emt 0:00:22]} (25... Nd5 $15 26. b5 c5) 26. b5 {[%emt 0:01:18]} ({Better is} 26. Bxg7 Rxg7 27. b5) 26... Bxe5 {[%emt 0:01:09]} ({Resist} 26... cxb5 27. Rc7 Qd8 28. Bxg7 $14 (28. axb5 $2 Bxe5 29. dxe5 Nd5 $19) (28. Nxg6 hxg6 29. Bxg7 Rxg7 $11)) 27. dxe5 {[%emt 0:00:02]} Rc8 {[%emt 0:09:42]} 28. Rd1 {[%emt 0:04:15]} Qe6 $36 {[%emt 0:00:08][%mdl 2048] Black has some pressure.} 29. f4 {[%emt 0:01:55]} (29. Qb2 $11 {remains equal.}) 29... exf3 {[%emt 0:01:32]} ({Black should play} 29... cxb5 $17 {aiming for ...Qb3.} 30. axb5 Nd5) 30. Nxf3 {[%emt 0:00:18]} cxb5 {[%emt 0:00:59]} 31. axb5 {[%emt 0:02:49]} Qb6+ {[%emt 0:01:02]} 32. Kh1 {[%emt 0:00:34]} Qxb5 {[%emt 0:00:51]} 33. Rxc8+ {[%emt 0:01:10]} Rxc8 {[%emt 0:00:09]} 34. Qa3 {[%emt 0:02:24]} Qc5 {[%emt 0:03:25]} 35. Qb3 {[%emt 0:03:25]} (35. Qb2 $17) 35... Qc2 $19 {[%emt 0:02:10]} 36. Qxc2 {[%emt 0:00:22]} Rxc2 {[%emt 0:00:07]} 37. Nd4 {[%emt 0:01:13]} Rc8 {[%emt 0:01:04]} 38. Re1 {[%emt 0:04:03]} a6 {[%emt 0:00:33]} 39. g3 {[%emt 0:00:24]} (39. g4 {might work better.} fxg4 40. Bxg4) 39... Ka7 {[%emt 0:01:23]} 40. Bg2 {[%emt 0:00:44]} b5 {[%emt 0:00:56]} 41. Kg1 {[%emt 0:01:07]} Kb6 {[%emt 0:00:05]} 42. Ne6 {[%emt 0:00:51]} Bf7 {[%emt 0:01:27]} 43. Ng5 {[%emt 0:00:37]} Bg8 {[%emt 0:00:31]} 44. Rd1 {[%emt 0:00:20]} Rc7 $2 {[%emt 0:01:25]} (44... a5 $19 {White must now prevent ...a4.} 45. e6 a4 46. Rd6+ Kc5) 45. Rd6+ $2 {[%emt 0:00:43] [#]} (45. e6 $1 $11) 45... Ka7 $2 {[%emt 0:00:14]} ({Black should try} 45... Kc5 $1 $19 {Threatens to win with ...b4.} 46. Rxa6 b4) 46. e6 $11 {[%emt 0:00:35]} h6 {[%emt 0:00:39]} 47. Nf7 {[%emt 0:00:25]} Nc8 {[%emt 0:00:32]} (47... Rc1+ 48. Kf2 Rc2+ 49. Ke1 $16) 48. Rd8 {[%emt 0:01:19]} Bxf7 {[%emt 0:00:51][%mdl 8192] [#]} ({Much less strong is} 48... Rc1+ 49. Kf2 Bh7 50. Bf3 $16 (50. Nxh6 Kb6 $16)) (48... Ne7 $11) 49. exf7 $2 {[%emt 0:00:07]} (49. Rd7 $1 $18 {[%cal Rd7c7] is the precise move to win.} Bxe6 50. Rxc7+ Kb6 51. Rc6+ Ka5 52. Rxe6) 49... Rxf7 $16 {[%emt 0:00:24]} 50. Rxc8 $11 {[%emt 0:00:03][%mdl 4096] Endgame KRB-KR. White is more active.} Rf6 {[%emt 0:01:48]} (50... f4 $16) 51. Kf2 $18 {[%emt 0:00:37]} f4 $2 {[%emt 0:00:35]} (51... Kb6 52. Ke3 Rd6) 52. g4 {[%emt 0:00:23]} Kb6 {[%emt 0:00:22]} (52... f3 $142) 53. Be4 {[%emt 0:00:34]} a5 {[%emt 0:00:17]} 54. h4 {[%emt 0:00:19][%cal Bh2h4,Bh4g5,Bg5g6][%mdl 32] Strongly threatening g5.} a4 {[%emt 0:00:26]} 55. g5 {[%emt 0:00:11]} hxg5 {[%emt 0:00:05]} 56. hxg5 {[%emt 0:00:04] White mates.} Rf7 {[%emt 0:00:49]} 57. g6 {[%emt 0:01:48]} Rg7 {[%emt 0:00:58]} 58. Ra8 {[%emt 0:00:51]} Kc5 {[%emt 0:00:17]} 59. Kf3 {[%emt 0:00:43]} Kb4 {[%emt 0:00:11]} 60. Kxf4 {[%emt 0:00:24]} Kb3 {[%emt 0:01:11]} 61. Kf5 {[%emt 0:00:25]} b4 {[%emt 0:00:40]} 62. Bd5+ {[%emt 0:00:23]} Ka3 {[%emt 0:00:40]} 63. Bc6 {[%emt 0:00:17]} b3 {[%emt 0:00:25]} 64. Rxa4+ {[%emt 0:00:14]} Kb2 {[%emt 0:00:09]} 65. Bd5 {[%emt 0:00:12]} Kc3 {[%emt 0:00:29]} 66. Ra3 {[%emt 0:00:15]} Kd4 {[%emt 0:00:24]} 67. Bxb3 {[%emt 0:05:45] What a bad dream for Black.  Weighted Error Value: White=0.46/Black=0.47} 1-0

[Event "Chessable English Open-ch 2022"]
[Site "Kenilwoth"]
[Date "2022.05.21"]
[Round "6.10"]
[White "Southcott-Moyers, Indy"]
[Black "Khoury, Theo"]
[Result "1/2-1/2"]
[ECO "A61"]
[WhiteElo "2028"]
[BlackElo "1927"]
[Annotator "TA"]
[PlyCount "75"]
[EventDate "2022.05.18"]
[EventType "swiss"]
[EventCountry "ENG"]
[SourceTitle "playchess.com"]
[Source "ChessBase"]
[SourceQuality "1"]
[TimeControl "5400+30"]

{[%evp 18,75,31,39,31,24,39,32,27,18,32,33,36,20,43,43,49,37,64,54,50,52,34,0,145,137,139,131,147,22,22,14,17,0,16,27,68,67,60,56,67,66,62,78,62,0,0,0,18,0,0,0,0,0,0,0,0,0,0,0]} 1. d4 {[%emt 0:00:02]} Nf6 {[%emt 0:00:08]} 2. c4 {[%emt 0:00:02]} c5 {[%emt 0:00:09]} 3. d5 {[%emt 0:00:16]} e6 {[%emt 0:00:06]} 4. Nc3 {[%emt 0:00:04]} exd5 {[%emt 0:00:09]} 5. cxd5 {[%emt 0:00:06]} d6 {[%emt 0:00:05]} 6. Nf3 {[%emt 0:00:08]} g6 {[%emt 0:00:06]} 7. Bf4 {[%emt 0:00:06]} a6 {[%emt 0:00:04]} 8. a4 {[%emt 0:00:05]} Bg7 {[%emt 0:00:04]} 9. h3 {[%emt 0:00:09]} O-O {[%emt 0:00:06]} 10. e3 {[%emt 0:00:02]} Ne8 {[%emt 0:00:46] A61: Modern Benoni: Nf3 without early e4.} 11. Be2 {[%emt 0:01:00]} Nd7 {[%emt 0:00:06]} 12. O-O {[%emt 0:00:26]} Ne5 {[%emt 0:01:32] White is slightly better.} 13. e4 {[%emt 0:12:38] Recently 13.Bxe5 got a lot of attention.} Nxf3+ {[%emt 0:03:31]} 14. Bxf3 {[%emt 0:00:28] [#]} Be5 $146 {[%emt 0:02:18]} ({Predecessor:} 14... Rb8 15. Be2 Nc7 16. a5 b5 17. axb6 Rxb6 18. Qd2 Re8 19. Bd3 Bd7 20. Rfb1 Qe7 {0-1 (65) Kaufman,L (2329)-Ortiz Suarez,I (2588) Arlington 2014}) 15. Qd2 {[%emt 0:08:24]} Qe7 {[%emt 0:04:46]} 16. Rfe1 {[%emt 0:08:20]} Bd7 {[%emt 0:04:35]} 17. a5 {[%emt 0:11:10]} Bb5 {[%emt 0:06:09]} 18. Be2 {[%emt 0:03:10] White is more active.} (18. Bh6 {keeps more tension.} Ng7 19. Rac1 Rac8 20. b4) 18... Bxe2 {[%emt 0:06:25]} 19. Rxe2 {[%emt 0:00:30]} Nc7 {[%emt 0:03:49]} 20. Bg5 {[%emt 0:07:05]} Qd7 {[%emt 0:02:32] [#]} (20... f6 $1 $11 {remains equal.} 21. Be3 Rad8) 21. Na4 $1 $16 {[%emt 0:04:27]} Qb5 {[%emt 0:06:38] [#]} 22. Nb6 $1 {[%emt 0:00:49]} Rab8 {[%emt 0:03:54]} 23. Rb1 {[%emt 0:07:28]} (23. Rc1 $16) 23... Na8 $11 {[%emt 0:04:59]} 24. Nxa8 $1 {[%emt 0:03:37]} Rxa8 {[%emt 0:00:06]} 25. Ree1 {[%emt 0:01:27]} Rfe8 {[%emt 0:03:18]} 26. Bf4 {[%emt 0:01:11]} Qa4 {[%emt 0:05:08]} 27. Bxe5 {[%emt 0:04:08]} Rxe5 {[%emt 0:00:27]} 28. b4 {[%emt 0:00:18]} cxb4 {[%emt 0:06:09]} 29. Qxb4 {[%emt 0:01:51]} Qxb4 {[%emt 0:01:08]} 30. Rxb4 {[%emt 0:00:13]} Rae8 {[%emt 0:00:37][%cal Oe5d5]} 31. Rxb7 {[%emt 0:00:17]} ({White should try} 31. Kf1 $14) 31... Rxd5 $1 {[%emt 0:00:24] The position is equal.} 32. exd5 {[%emt 0:04:59]} Rxe1+ $14 {[%emt 0:00:09][%mdl 4096] Endgame KR-KR} 33. Kh2 {[%emt 0:00:02]} Ra1 {[%emt 0:00:15]} 34. Rb6 {[%emt 0:00:11][%csl LRa6,LRd6]} Rxa5 {[%emt 0:00:06]} 35. Rxd6 {[%emt 0:00:16]} Kf8 {[%emt 0:00:28]} 36. Rd7 {[%emt 0:00:26]} Ke8 {[%emt 0:00:29]} 37. Ra7 {[%emt 0:00:02]} Rxd5 {[%emt 0:00:32]} 38. Rxa6 {[%emt 0:00:08] Weighted Error Value: White=0.14 (very precise) /Black=0.14 (very precise)} 1/2-1/2

[Event "Chessable English Open-ch 2022"]
[Site "Kenilwoth"]
[Date "2022.05.21"]
[Round "6.11"]
[White "Watson, Jacob"]
[Black "Thompson, Ian D"]
[Result "0-1"]
[ECO "C01"]
[WhiteElo "1922"]
[BlackElo "2074"]
[Annotator "TA"]
[PlyCount "170"]
[EventDate "2022.05.18"]
[EventType "swiss"]
[EventCountry "ENG"]
[SourceTitle "playchess.com"]
[Source "ChessBase"]
[SourceQuality "1"]
[TimeControl "5400+30"]

{[%evp 10,170,41,10,25,-37,8,-8,-2,-6,-4,-4,-4,-8,-2,-1,17,-25,-16,-16,-10,-4,-9,-20,-15,-17,-8,-30,-29,-47,-50,-46,-32,-48,-39,-110,-104,-102,-75,-88,-75,-69,-66,-218,-222,-207,-211,-185,-135,-173,-180,-187,-183,-185,-172,-170,-129,-238,-137,-155,-137,-254,-170,-241,-237,-215,-79,-74,-73,-99,-78,-78,-78,-93,-93,-93,-81,-121,-77,-121,-121,-216,-201,-212,-133,-206,-205,-206,-116,-108,-64,-259,-257,-341,-290,-275,-320,-260,-231,-199,-96,-135,-135,-135,-135,-135,-80,-135,-135,-80,-82,-543,-29,-29,-29,-29,-29,-29,-29,-130,-130,-161,-177,-184,-184,-184,-137,-209,-184,-184,-184,-184,-184,-184,-184,-29974,-8,-8,0,0,0,-8,0,-29960,-29960,-9296,-6804,-29980,-29981,-29981,-29982,-29982,-29983,-29983,-29984,-29984,-29985,-29985,-29986,-29986,-29987,-29987,-29988]} 1. e4 {[%emt 0:00:07]} e6 {[%emt 0:00:04]} 2. d4 {[%emt 0:00:16]} d5 {[%emt 0:00:06]} 3. exd5 {[%emt 0:00:25]} exd5 {[%emt 0:00:06]} 4. c4 {[%emt 0:00:07]} Bb4+ {[%emt 0:00:59]} 5. Nc3 {[%emt 0:00:49]} Qe7+ {[%emt 0:01:10]} 6. Be3 {[%emt 0:04:45]} (6. Be2 $5 {[%cal Rg1f3]}) 6... Nf6 {[%emt 0:03:24] C01: French: Exchange Variation.} 7. h3 {[%emt 0:05:34]} (7. Nf3 $11) 7... c6 {[%emt 0:02:25]} 8. Bd3 {[%emt 0:01:52] [#]} dxc4 $146 {[%emt 0:06:10] The position is equal.} ({Predecessor:} 8... Be6 9. c5 b6 10. cxb6 axb6 11. Nge2 O-O 12. O-O c5 13. a3 Bxc3 14. Nxc3 Nc6 {1-0 (51) Plenca,J (2154)-Cenkovcan,A (1911) Vukovar 2013}) 9. Bxc4 {[%emt 0:01:29]} Be6 {[%emt 0:05:26]} 10. Bxe6 {[%emt 0:05:13]} Qxe6 {[%emt 0:00:42]} 11. Nge2 {[%emt 0:00:19][%cal Bg1e2,Be2f4,Bf4d3,Bd3e5][%mdl 32]} O-O {[%emt 0:05:39]} 12. O-O {[%emt 0:04:16]} Nbd7 {[%emt 0:01:54][%cal Bb8d7,Bd7b6,Bb6d5][%mdl 32]} 13. Qc2 {[%emt 0:04:20][%cal Od4d5]} (13. d5 $5 Nxd5 14. Nxd5 Qxd5 15. Qxd5 cxd5 16. Nf4 $11) 13... Nb6 {[%emt 0:01:09]} 14. Nf4 {[%emt 0:02:47]} Qd7 {[%emt 0:00:31]} 15. Nd3 {[%emt 0:02:27]} Be7 {[%emt 0:01:32]} 16. Ne5 {[%emt 0:03:36]} Qc7 {[%emt 0:05:35]} 17. Rac1 {[%emt 0:14:17]} Nbd5 {[%emt 0:12:53]} 18. Qb3 {[%emt 0:07:56]} Rad8 {[%emt 0:02:42]} 19. Bg5 {[%emt 0:08:13]} Qb6 {[%emt 0:08:05]} 20. Qxb6 {[%emt 0:05:29]} axb6 {[%emt 0:02:13]} 21. Rfd1 {[%emt 0:02:13]} b5 {[%emt 0:02:48]} 22. Ne2 {[%emt 0:04:57]} (22. Ra1 $15) 22... h6 $17 {[%emt 0:02:41]} 23. Bh4 {[%emt 0:02:05]} Ra8 {[%emt 0:05:00]} 24. a3 {[%emt 0:01:54]} Rfd8 {[%emt 0:00:13]} 25. Nd3 {[%emt 0:01:45]} Re8 {[%emt 0:29:33][%cal Oe7a3] Black is more active.} 26. Nc3 $2 {[%emt 0:07:43]} ({Better is} 26. Bxf6 $15 Bxf6 27. Rc2) 26... Nxc3 $19 {[%emt 0:00:00]} 27. bxc3 {[%emt 0:01:07]} Bxa3 {[%emt 0:00:00] Threatens to win with ...g5.} ({Not} 27... Rxa3 28. Bxf6 Bxf6 29. Rc2 $17) 28. Rc2 {[%emt 0:00:39]} Ne4 {[%emt 0:00:00]} ({Black should try} 28... Nd5 $19 29. Bg3 Bf8) 29. Rb1 {[%emt 0:02:00]} g5 {[%emt 0:00:00]} 30. Bg3 {[%emt 0:00:21]} Nxg3 {[%emt 0:00:00]} 31. fxg3 {[%emt 0:00:05]} Bd6 {[%emt 0:00:00]} 32. Kf2 {[%emt 0:01:28]} Ra4 {[%emt 0:00:00]} 33. Rb3 {[%emt 0:01:18] [#]} (33. g4 $17) 33... Rea8 {[%emt 0:00:00]} (33... Bxg3+ $1 $19 {[%mdl 512]} 34. Kxg3 Re3+ 35. Kf2 Rxd3) 34. Kf3 {[%emt 0:00:42]} Ra2 {[%emt 0:00:00]} 35. Rc1 {[%emt 0:01:03]} (35. Rxa2 $17 Rxa2 36. g4) 35... Re8 {[%emt 0:00:00]} 36. c4 {[%emt 0:01:49]} (36. Rb2 {was called for.} Raa8 37. Rcc2) 36... bxc4 {[%emt 0:00:00]} 37. Rxc4 {[%emt 0:00:06]} Ra3 {[%emt 0:00:00]} (37... Ree2 $19 38. Rxb7 Rxg2) 38. Rxa3 $17 {[%emt 0:01:21]} Bxa3 {[%emt 0:00:00][%mdl 4096] Endgame KRB-KRN} 39. Ra4 {[%emt 0:00:53]} Bd6 {[%emt 0:00:00]} 40. Ra7 {[%emt 0:00:23]} Re7 {[%emt 0:00:10][%cal Od6g3]} 41. Nc5 {[%emt 0:00:50]} Bxc5 {[%emt 0:02:21]} 42. dxc5 {[%emt 0:00:06] KR-KR} Kg7 {[%emt 0:00:05]} 43. Ra3 {[%emt 0:01:21]} Kf6 {[%emt 0:01:02]} 44. Rd3 {[%emt 0:00:58]} Re5 {[%emt 0:01:19]} 45. Rb3 {[%emt 0:00:13]} (45. Rc3 $17 {was worth a try.}) 45... Rxc5 $19 {[%emt 0:00:18] And now ...b5 would win.} 46. Rxb7 {[%emt 0:00:03]} Rc3+ $1 {[%emt 0:00:15]} 47. Kf2 {[%emt 0:00:07]} h5 $1 {[%emt 0:00:46]} 48. Rd7 {[%emt 0:01:08]} Ke6 {[%emt 0:00:59] Prevents Rd6+.} (48... g4 $19 49. Rd4 Rc2+ 50. Kf1 Kg5) 49. Rd8 $17 {[%emt 0:00:22]} Rc4 {[%emt 0:00:22]} 50. Rd3 $2 {[%emt 0:00:37]} ({White should play} 50. Rh8 $15) 50... f5 $19 {[%emt 0:00:22]} 51. Ke3 {[%emt 0:01:03]} Ke5 {[%emt 0:01:46]} 52. Rd8 {[%emt 0:00:09]} Rc3+ {[%emt 0:00:48]} 53. Kf2 {[%emt 0:00:08]} Rc2+ {[%emt 0:00:09]} 54. Kf1 {[%emt 0:00:13]} h4 {[%emt 0:00:30]} (54... c5 $19 {has better winning chances. aiming for ...c4.} 55. Re8+ Kd4 56. Rd8+ Ke3 57. Re8+ Kd2 58. Rd8+ Kc1) 55. gxh4 {[%emt 0:00:10]} gxh4 {[%emt 0:00:03] White must now prevent ...c5.} 56. Rh8 {[%emt 0:00:16]} Rc4 $1 {[%emt 0:00:10]} 57. Ke2 {[%emt 0:00:19]} c5 {[%emt 0:00:25]} (57... Re4+ $142 58. Kd3 Rd4+ 59. Kc3 Re4) 58. Kd3 {[%emt 0:00:35]} (58. Rh5 $142) 58... Rd4+ $1 $17 {[%emt 0:00:25]} 59. Kc3 {[%emt 0:00:38]} (59. Kc2 $142) 59... Re4 {[%emt 0:01:27]} 60. Rc8 $2 {[%emt 0:00:28][%mdl 8192]} (60. Kd3 $17) 60... Re3+ $2 {[%emt 0:01:04]} (60... Kf4 $1 $19 61. Kd3 (61. Rxc5 $2 Re2 $19) 61... Re3+ 62. Kd2 Rg3 63. Rxc5 Rxg2+ 64. Ke1 Rg3) 61. Kd2 $1 $11 {[%emt 0:00:42]} Rg3 {[%emt 0:00:31]} 62. Rxc5+ {[%emt 0:00:29]} Kf4 {[%emt 0:00:07]} 63. Rc4+ {[%emt 0:00:33]} Kg5 {[%emt 0:00:02]} 64. Ke1 {[%emt 0:01:52]} (64. Rc8 $1 $11) 64... Rxg2 $17 {[%emt 0:00:03]} 65. Kf1 {[%emt 0:00:45]} Rg3 $1 {[%emt 0:00:02]} 66. Rc8 {[%emt 0:00:29]} Rxh3 {[%emt 0:00:09] Hoping for ...Rh2.} 67. Kg2 {[%emt 0:00:23] Prevents Rh2+.} Ra3 {[%emt 0:01:05]} (67... Rg3+ $19 68. Kf2 Ra3) 68. Rc4 {[%emt 0:00:36]} (68. Rg8+ $17 Kf4 69. Rh8) 68... h3+ {[%emt 0:00:39]} 69. Kh2 {[%emt 0:00:05]} f4 {[%emt 0:00:15][%cal Bf5f4,Bf4f3,Bf3f2][%mdl 32]} 70. Rc8 {[%emt 0:00:18]} Kg4 {[%emt 0:00:53]} 71. Rg8+ {[%emt 0:00:22]} Kf3 $1 {[%emt 0:00:12] ...Ke2 is the strong threat.} 72. Kxh3 $2 {[%emt 0:00:20]} (72. Rb8 $19) 72... Kf2+ $2 {[%emt 0:00:58]} (72... Ke2+ {mates} 73. Kh2 f3 74. Rf8 Ra1 75. Re8+ Kf1 76. Rh8 f2 77. Rf8 Ke2 78. Re8+ Kd3 79. Rd8+ Ke4 80. Re8+ Kd4 81. Rd8+ Ke5 82. Re8+ Kd6 83. Rf8 f1=Q 84. Rxf1 Rxf1 85. Kg3 Ke5 86. Kg4 Rf7 87. Kg3 Ke4 88. Kg2 Ke3 89. Kg3 Rf4 90. Kg2 Rf3 91. Kg1 Rg3+ 92. Kh1 Kf3 93. Kh2 Kf2 94. Kh1 Rh3#) 73. Kh2 $1 $11 {[%emt 0:00:22]} f3 {[%emt 0:00:59]} 74. Rb8 {[%emt 0:00:59]} Re3 {[%emt 0:00:12]} 75. Rb1 $1 {[%emt 0:00:32]} Re2 {[%emt 0:00:41]} 76. Rb3 $2 {[%emt 0:00:51][%mdl 8192] [#]} (76. Rb7 $11) 76... Kf1+ $1 {[%emt 0:00:50]} ({Stronger than} 76... Ke1+ 77. Kg3 $11) 77. Kg3 {[%emt 0:00:41]} f2 {[%emt 0:00:08] ( -> ...Kg1)} 78. Kh2 {[%emt 0:00:44]} Re8 {[%emt 0:01:03] Black mates.} 79. Rb1+ {[%emt 0:00:31]} Ke2 {[%emt 0:00:02]} 80. Rb2+ {[%emt 0:00:06]} Kf3 {[%emt 0:00:14][%cal Re8h8]} 81. Rb3+ {[%emt 0:00:39] [#]} Re3 $1 {[%emt 0:00:16]} 82. Rb1 {[%emt 0:00:09]} Re1 {[%emt 0:00:17]} 83. Rb3+ {[%emt 0:00:15]} Ke4 {[%emt 0:00:16]} 84. Rb4+ {[%emt 0:00:56]} Kd3 {[%emt 0:00:24]} 85. Rb3+ {[%emt 0:00:37]} Kc4 {[%emt 0:00:15] Weighted Error Value: White=0.44/Black=0.37} 0-1